[Event "*** SCC Grand Prix: Titled Tuesday Blitz"]
[Site "Chess.com"]
[Date "2020.07.21"]
[Round "3"]
[White "Harry_Rakkel"]
[Black "LaPorfia"]
[Result "1-0"]
[WhiteElo "2541"]
[BlackElo "2234"]
[TimeControl "180+1"]
[EndTime "10:26:12 PDT"]
[Termination "Harry_Rakkel won by resignation"]

1. e4 {[%clk 0:03:00.9]} 1... d5 {[%clk 0:02:59.3]} 2. exd5 {[%clk 0:02:59.9]}
2... Nf6 {[%clk 0:02:59]} 3. d4 {[%clk 0:02:58.5]} 3... Bg4 {[%clk 0:02:58.8]}
4. Be2 {[%clk 0:02:58]} 4... Bxe2 {[%clk 0:02:58.4]} 5. Qxe2 {[%clk 0:02:57.9]}
5... Qxd5 {[%clk 0:02:58.4]} 6. Nf3 {[%clk 0:02:58.2]} 6... Nc6 {[%clk
0:02:58.2]} 7. c4 {[%clk 0:02:58.6]} 7... Qf5 {[%clk 0:02:57.7]} 8. O-O {[%clk
0:02:51.9]} 8... O-O-O {[%clk 0:02:56.8]} 9. d5 {[%clk 0:02:51.7]} 9... Nb4
{[%clk 0:02:55.6]} 10. a3 {[%clk 0:02:51.3]} 10... Nc2 {[%clk 0:02:30.3]} 11.
Ra2 {[%clk 0:02:50.3]} 11... e5 {[%clk 0:01:46.3]} 12. Qxe5 {[%clk 0:02:17.5]}
12... Qd3 {[%clk 0:01:32.5]} 13. Qc3 {[%clk 0:02:08]} 13... Qg6 {[%clk
0:01:18.2]} 14. Ne5 {[%clk 0:02:03.5]} 14... Qf5 {[%clk 0:01:06.6]} 15. Nxf7
{[%clk 0:02:01]} 15... Bd6 {[%clk 0:01:04.4]} 16. Nxd6+ {[%clk 0:01:46.2]} 16...
Rxd6 {[%clk 0:01:01.8]} 17. b4 {[%clk 0:01:46.4]} 17... Nd4 {[%clk 0:00:56.5]}
18. Qxd4 {[%clk 0:01:42.8]} 18... Qxb1 {[%clk 0:00:56.1]} 19. Qxa7 {[%clk
0:01:35.8]} 19... Re8 {[%clk 0:00:41.3]} 20. Rb2 {[%clk 0:01:28.8]} 20... Qe4
{[%clk 0:00:37.8]} 21. Qa8+ {[%clk 0:01:23.9]} 21... Kd7 {[%clk 0:00:37.7]} 22.
Qxb7 {[%clk 0:01:24.8]} 22... Ng4 {[%clk 0:00:29.4]} 23. h3 {[%clk 0:01:20.5]}
23... Ne5 {[%clk 0:00:23.5]} 24. Qb5+ {[%clk 0:01:18.1]} 24... Kd8 {[%clk
0:00:22.3]} 25. Bg5+ {[%clk 0:01:16.7]} 25... Kc8 {[%clk 0:00:20.8]} 26. Qxe8+
{[%clk 0:01:15.8]} 1-0

[Event "*** SCC Grand Prix: Titled Tuesday Blitz"]
[Site "Chess.com"]
[Date "2020.07.21"]
[Round "3"]
[White "rududuyk"]
[Black "warmoatmeal"]
[Result "0-1"]
[WhiteElo "2067"]
[BlackElo "2360"]
[TimeControl "180+1"]
[EndTime "10:26:13 PDT"]
[Termination "warmoatmeal won on time"]

1. e4 {[%clk 0:03:00.9]} 1... e6 {[%clk 0:02:59.1]} 2. d4 {[%clk 0:03:00.4]}
2... b6 {[%clk 0:02:56.8]} 3. Nc3 {[%clk 0:02:54.1]} 3... Bb7 {[%clk 0:02:56.8]}
4. Bd3 {[%clk 0:02:47.5]} 4... Nf6 {[%clk 0:02:46]} 5. Bg5 {[%clk 0:02:36.9]}
5... Be7 {[%clk 0:02:45.9]} 6. f4 {[%clk 0:02:28.3]} 6... h6 {[%clk 0:02:37.3]}
7. Bh4 {[%clk 0:02:26.4]} 7... d5 {[%clk 0:02:37.6]} 8. e5 {[%clk 0:02:22.7]}
8... Ne4 {[%clk 0:02:37.6]} 9. Bxe7 {[%clk 0:02:19.3]} 9... Qxe7 {[%clk
0:02:36]} 10. Nxe4 {[%clk 0:02:03.6]} 10... dxe4 {[%clk 0:02:34.4]} 11. Bb5+
{[%clk 0:01:33.5]} 11... Bc6 {[%clk 0:02:29.2]} 12. Bxc6+ {[%clk 0:01:19]} 12...
Nxc6 {[%clk 0:02:30.1]} 13. c3 {[%clk 0:01:19.4]} 13... O-O-O {[%clk 0:02:25.9]}
14. Qa4 {[%clk 0:01:16]} 14... Kb7 {[%clk 0:02:24.1]} 15. O-O-O {[%clk
0:01:02.7]} 15... g5 {[%clk 0:02:22]} 16. Ne2 {[%clk 0:00:57.6]} 16... f6 {[%clk
0:02:18.1]} 17. g3 {[%clk 0:00:51.5]} 17... Rhf8 {[%clk 0:02:14.9]} 18. Kb1
{[%clk 0:00:43.4]} 18... f5 {[%clk 0:02:14.9]} 19. Qb3 {[%clk 0:00:19]} 19... a5
{[%clk 0:01:56.7]} 20. d5 {[%clk 0:00:16.4]} 20... exd5 {[%clk 0:01:55.4]} 21.
Rxd5 {[%clk 0:00:15.9]} 21... Rxd5 {[%clk 0:01:55.1]} 22. Qxd5 {[%clk
0:00:16.8]} 22... Rd8 {[%clk 0:01:55.5]} 23. Qb5 {[%clk 0:00:13.1]} 23... Rd2
{[%clk 0:01:52]} 24. Nd4 {[%clk 0:00:10.7]} 24... Nxd4 {[%clk 0:01:48.5]} 25.
cxd4 {[%clk 0:00:10.8]} 25... Qb4 {[%clk 0:01:41.6]} 26. Qd5+ {[%clk 0:00:04.4]}
26... Ka7 {[%clk 0:01:29.6]} 0-1

[Event "*** SCC Grand Prix: Titled Tuesday Blitz"]
[Site "Chess.com"]
[Date "2020.07.21"]
[Round "3"]
[White "stanyga"]
[Black "Shield12"]
[Result "1/2-1/2"]
[WhiteElo "2585"]
[BlackElo "2844"]
[TimeControl "180+1"]
[EndTime "10:26:14 PDT"]
[Termination "Game drawn by repetition"]

1. e4 {[%clk 0:02:59.8]} 1... c5 {[%clk 0:03:00.1]} 2. Nf3 {[%clk 0:02:59.7]}
2... Nc6 {[%clk 0:03:00.6]} 3. Bb5 {[%clk 0:02:58.4]} 3... Nf6 {[%clk
0:03:00.9]} 4. e5 {[%clk 0:02:56.7]} 4... Nd5 {[%clk 0:02:59.8]} 5. O-O {[%clk
0:02:54.4]} 5... g6 {[%clk 0:02:51.2]} 6. Nc3 {[%clk 0:02:49]} 6... Nc7 {[%clk
0:02:49.6]} 7. Bxc6 {[%clk 0:02:47.4]} 7... dxc6 {[%clk 0:02:50.5]} 8. Ne4
{[%clk 0:02:42.2]} 8... b6 {[%clk 0:02:45.7]} 9. Re1 {[%clk 0:02:40.4]} 9... Bg7
{[%clk 0:02:45.5]} 10. Nf6+ {[%clk 0:02:40]} 10... Kf8 {[%clk 0:02:43.5]} 11.
Ne4 {[%clk 0:02:40.1]} 11... h6 {[%clk 0:02:42.2]} 12. h3 {[%clk 0:02:35.1]}
12... Be6 {[%clk 0:02:37.1]} 13. d3 {[%clk 0:02:34.7]} 13... Qd7 {[%clk
0:02:37.2]} 14. a4 {[%clk 0:02:24]} 14... a5 {[%clk 0:02:35.9]} 15. b3 {[%clk
0:02:22]} 15... Rd8 {[%clk 0:02:34.5]} 16. Qe2 {[%clk 0:02:20.3]} 16... Nd5
{[%clk 0:02:32.3]} 17. Bd2 {[%clk 0:02:14.7]} 17... Kg8 {[%clk 0:02:30.5]} 18.
Rad1 {[%clk 0:02:07.7]} 18... Kh7 {[%clk 0:02:27.3]} 19. Bc1 {[%clk 0:01:44.7]}
19... Bf5 {[%clk 0:02:25.2]} 20. c4 {[%clk 0:01:39.9]} 20... Nb4 {[%clk
0:02:19.8]} 21. d4 {[%clk 0:01:39.9]} 21... cxd4 {[%clk 0:02:05.4]} 22. Nxd4
{[%clk 0:01:39.7]} 22... Bxe4 {[%clk 0:02:01.1]} 23. Qxe4 {[%clk 0:01:36.9]}
23... c5 {[%clk 0:01:59.3]} 24. e6 {[%clk 0:01:20.9]} 24... Qd6 {[%clk
0:01:47.3]} 25. Nf3 {[%clk 0:01:04.9]} 25... Qxd1 {[%clk 0:01:45.5]} 26. Rxd1
{[%clk 0:01:01.6]} 26... Rxd1+ {[%clk 0:01:46.4]} 27. Kh2 {[%clk 0:01:01.8]}
27... Rxc1 {[%clk 0:01:27.3]} 28. exf7 {[%clk 0:00:59.5]} 28... Bf6 {[%clk
0:01:26.6]} 29. Ne5 {[%clk 0:00:53.9]} 29... Bxe5+ {[%clk 0:01:20.5]} 30. Qxe5
{[%clk 0:00:54.1]} 30... Rf8 {[%clk 0:01:20.5]} 31. Qxe7 {[%clk 0:00:54.3]}
31... Kg7 {[%clk 0:01:18]} 32. Qe5+ {[%clk 0:00:54.1]} 32... Kh7 {[%clk
0:01:16]} 33. Qe7 {[%clk 0:00:53.2]} 33... Kg7 {[%clk 0:01:14.1]} 34. Qe5+
{[%clk 0:00:52.1]} 34... Kh7 {[%clk 0:01:12.1]} 35. Qe7 {[%clk 0:00:50.6]}
1/2-1/2

[Event "*** SCC Grand Prix: Titled Tuesday Blitz"]
[Site "Chess.com"]
[Date "2020.07.21"]
[Round "3"]
[White "S2PAc"]
[Black "Bayernbk"]
[Result "1-0"]
[WhiteElo "2792"]
[BlackElo "2501"]
[TimeControl "180+1"]
[EndTime "10:26:24 PDT"]
[Termination "S2PAc won by resignation"]

1. d4 {[%clk 0:03:00.9]} 1... Nf6 {[%clk 0:02:58.6]} 2. g3 {[%clk 0:03:01.1]}
2... e6 {[%clk 0:02:58.7]} 3. Bg2 {[%clk 0:03:01.4]} 3... d5 {[%clk 0:02:59.1]}
4. Nf3 {[%clk 0:03:01.9]} 4... Be7 {[%clk 0:02:59.5]} 5. O-O {[%clk 0:03:02.4]}
5... O-O {[%clk 0:03:00.2]} 6. c4 {[%clk 0:03:03]} 6... c6 {[%clk 0:03:00.7]} 7.
Nc3 {[%clk 0:03:02.4]} 7... b6 {[%clk 0:03:01.2]} 8. Ne5 {[%clk 0:03:01.3]} 8...
Nfd7 {[%clk 0:02:59.3]} 9. Nf3 {[%clk 0:02:29.4]} 9... Bb7 {[%clk 0:02:54.6]}
10. Bf4 {[%clk 0:02:22.2]} 10... Nf6 {[%clk 0:02:52.6]} 11. Qc2 {[%clk
0:02:19.3]} 11... Na6 {[%clk 0:02:50.5]} 12. Rfd1 {[%clk 0:02:13.7]} 12... Rc8
{[%clk 0:02:49.2]} 13. Qa4 {[%clk 0:02:07.1]} 13... Nh5 {[%clk 0:02:43.6]} 14.
Be3 {[%clk 0:01:58.8]} 14... Nf6 {[%clk 0:02:44]} 15. Ne5 {[%clk 0:01:58.5]}
15... Nd7 {[%clk 0:02:43.9]} 16. Nxd7 {[%clk 0:01:56.4]} 16... Qxd7 {[%clk
0:02:43.4]} 17. cxd5 {[%clk 0:01:57.3]} 17... exd5 {[%clk 0:02:13.4]} 18. Nxd5
{[%clk 0:01:55.7]} 18... b5 {[%clk 0:02:08.5]} 19. Nxe7+ {[%clk 0:01:51.9]}
19... Qxe7 {[%clk 0:02:09.4]} 20. Qb3 {[%clk 0:01:50.5]} 20... Nc7 {[%clk
0:02:00.7]} 21. Bf3 {[%clk 0:01:24.3]} 21... a6 {[%clk 0:01:47.3]} 22. Bd2
{[%clk 0:01:21.2]} 22... Rfd8 {[%clk 0:01:43]} 23. Ba5 {[%clk 0:01:19.5]} 23...
Rd7 {[%clk 0:01:33.7]} 24. Rac1 {[%clk 0:01:18.6]} 24... Ne6 {[%clk 0:01:26.4]}
25. e3 {[%clk 0:01:11]} 25... c5 {[%clk 0:01:16.3]} 26. Bxb7 {[%clk 0:01:06.3]}
26... Rxb7 {[%clk 0:01:12.3]} 27. dxc5 {[%clk 0:01:05.8]} 27... Rxc5 {[%clk
0:01:07.4]} 28. Bb4 {[%clk 0:01:02.8]} 28... Rxc1 {[%clk 0:01:06.1]} 29. Bxe7
{[%clk 0:01:02.4]} 29... Rxd1+ {[%clk 0:01:04.5]} 30. Qxd1 {[%clk 0:01:03.3]}
30... Rxe7 {[%clk 0:01:04.8]} 31. Qd6 {[%clk 0:01:03.8]} 31... Re8 {[%clk
0:01:02.1]} 32. Qxa6 {[%clk 0:01:03.8]} 32... b4 {[%clk 0:01:02.7]} 33. Qb5
{[%clk 0:00:59.4]} 33... h6 {[%clk 0:01:03]} 34. Qxb4 {[%clk 0:00:59.4]} 34...
Ng5 {[%clk 0:01:02.9]} 35. h4 {[%clk 0:00:58.4]} 35... Nf3+ {[%clk 0:01:00.9]}
36. Kg2 {[%clk 0:00:58.6]} 36... Ne5 {[%clk 0:01:01.4]} 37. a4 {[%clk
0:00:51.7]} 37... Re7 {[%clk 0:01:01]} 1-0

[Event "*** SCC Grand Prix: Titled Tuesday Blitz"]
[Site "Chess.com"]
[Date "2020.07.21"]
[Round "3"]
[White "nitpicker"]
[Black "ChessAurochs"]
[Result "0-1"]
[WhiteElo "2234"]
[BlackElo "2515"]
[TimeControl "180+1"]
[EndTime "10:26:24 PDT"]
[Termination "ChessAurochs won by resignation"]

1. d4 {[%clk 0:03:00.9]} 1... Nf6 {[%clk 0:02:59.7]} 2. c4 {[%clk 0:03:00.7]}
2... e6 {[%clk 0:02:57.9]} 3. Nf3 {[%clk 0:03:00]} 3... d5 {[%clk 0:02:57.3]} 4.
g3 {[%clk 0:02:57.9]} 4... Bb4+ {[%clk 0:02:54]} 5. Bd2 {[%clk 0:02:56.4]} 5...
Bd6 {[%clk 0:02:53.6]} 6. Qc2 {[%clk 0:02:51.8]} 6... c6 {[%clk 0:02:49.9]} 7.
Bg2 {[%clk 0:02:51.7]} 7... Nbd7 {[%clk 0:02:48.5]} 8. O-O {[%clk 0:02:50.7]}
8... O-O {[%clk 0:02:44.9]} 9. Bf4 {[%clk 0:02:49]} 9... Bxf4 {[%clk 0:02:43.8]}
10. gxf4 {[%clk 0:02:49.8]} 10... Ne4 {[%clk 0:02:44.4]} 11. e3 {[%clk
0:02:44.9]} 11... f5 {[%clk 0:02:44.1]} 12. Nbd2 {[%clk 0:02:37.5]} 12... Rf6
{[%clk 0:02:42.2]} 13. Ne5 {[%clk 0:02:32]} 13... Nxe5 {[%clk 0:02:27.1]} 14.
fxe5 {[%clk 0:02:30]} 14... Rh6 {[%clk 0:02:26.5]} 15. f3 {[%clk 0:01:40.2]}
15... Nxd2 {[%clk 0:02:04]} 16. Qxd2 {[%clk 0:01:38.1]} 16... Qh4 {[%clk
0:02:04.6]} 17. h3 {[%clk 0:01:23.7]} 17... f4 {[%clk 0:02:04.2]} 18. e4 {[%clk
0:00:59.8]} 18... Bd7 {[%clk 0:01:51.3]} 19. Qf2 {[%clk 0:00:45]} 19... Qg5
{[%clk 0:01:49.2]} 20. Kh2 {[%clk 0:00:39.2]} 20... dxc4 {[%clk 0:01:47.2]} 21.
Bh1 {[%clk 0:00:29.6]} 21... Qh5 {[%clk 0:01:35.9]} 22. Bg2 {[%clk 0:00:28.8]}
22... b5 {[%clk 0:01:35.5]} 23. b3 {[%clk 0:00:27.7]} 23... cxb3 {[%clk
0:01:27.9]} 24. axb3 {[%clk 0:00:27.4]} 24... c5 {[%clk 0:01:28.5]} 25. dxc5
{[%clk 0:00:19]} 25... Qxe5 {[%clk 0:01:27.9]} 26. Rfd1 {[%clk 0:00:15.3]} 26...
Be8 {[%clk 0:01:14.5]} 27. Rd6 {[%clk 0:00:12]} 27... Qxa1 {[%clk 0:01:13.6]}
0-1

[Event "*** SCC Grand Prix: Titled Tuesday Blitz"]
[Site "Chess.com"]
[Date "2020.07.21"]
[Round "3"]
[White "Malysch"]
[Black "crescentmoon2411"]
[Result "0-1"]
[WhiteElo "2443"]
[BlackElo "2819"]
[TimeControl "180+1"]
[EndTime "10:26:30 PDT"]
[Termination "crescentmoon2411 won on time"]

1. d4 {[%clk 0:03:00.9]} 1... Nf6 {[%clk 0:02:59.8]} 2. c4 {[%clk 0:03:00.9]}
2... e6 {[%clk 0:03:00.2]} 3. g3 {[%clk 0:03:00.6]} 3... c5 {[%clk 0:02:59.8]}
4. d5 {[%clk 0:02:59.3]} 4... exd5 {[%clk 0:02:59.2]} 5. cxd5 {[%clk 0:03:00.2]}
5... d6 {[%clk 0:02:59.7]} 6. Nc3 {[%clk 0:02:59.6]} 6... g6 {[%clk 0:03:00.2]}
7. Bg2 {[%clk 0:02:58.4]} 7... Bg7 {[%clk 0:03:00.4]} 8. Nf3 {[%clk 0:02:58.2]}
8... O-O {[%clk 0:03:00.5]} 9. Nd2 {[%clk 0:02:58]} 9... a6 {[%clk 0:02:59.4]}
10. a4 {[%clk 0:02:57.2]} 10... Nbd7 {[%clk 0:02:56.3]} 11. O-O {[%clk 0:02:56]}
11... Re8 {[%clk 0:02:56.2]} 12. h3 {[%clk 0:02:55.6]} 12... Rb8 {[%clk
0:02:51]} 13. Nc4 {[%clk 0:02:55.2]} 13... Ne5 {[%clk 0:02:48]} 14. Na3 {[%clk
0:02:54.6]} 14... Nh5 {[%clk 0:02:45.5]} 15. e4 {[%clk 0:02:53.6]} 15... Bd7
{[%clk 0:02:27.6]} 16. a5 {[%clk 0:02:52.6]} 16... b5 {[%clk 0:02:26]} 17. axb6
{[%clk 0:02:48.8]} 17... Rxb6 {[%clk 0:02:22.4]} 18. g4 {[%clk 0:02:40.6]} 18...
Nf6 {[%clk 0:02:18.7]} 19. f4 {[%clk 0:02:37.2]} 19... Nfxg4 {[%clk 0:01:58.4]}
20. hxg4 {[%clk 0:02:38.1]} 20... Nxg4 {[%clk 0:01:58.3]} 21. Nc2 {[%clk
0:01:16.7]} 21... Qh4 {[%clk 0:01:57.4]} 22. Rf3 {[%clk 0:01:14.9]} 22... Bxc3
{[%clk 0:01:54.6]} 23. Rxc3 {[%clk 0:00:59.1]} 23... Qh2+ {[%clk 0:01:47.4]} 24.
Kf1 {[%clk 0:00:58.6]} 24... Bb5+ {[%clk 0:01:47.6]} 25. Rd3 {[%clk 0:00:52.6]}
25... Qg3 {[%clk 0:01:47]} 26. Be3 {[%clk 0:00:38.5]} 26... Bxd3+ {[%clk
0:01:32.5]} 27. Qxd3 {[%clk 0:00:37.4]} 27... Rxb2 {[%clk 0:01:30.3]} 28. Re1
{[%clk 0:00:17.9]} 28... Rxc2 {[%clk 0:01:25]} 0-1

[Event "*** SCC Grand Prix: Titled Tuesday Blitz"]
[Site "Chess.com"]
[Date "2020.07.21"]
[Round "3"]
[White "kingofthenil"]
[Black "Walter_White_Poland"]
[Result "1-0"]
[WhiteElo "2424"]
[BlackElo "2248"]
[TimeControl "180+1"]
[EndTime "10:26:38 PDT"]
[Termination "kingofthenil won by resignation"]

1. e4 {[%clk 0:00:37.5]} 1... e6 {[%clk 0:02:58.2]} 2. d4 {[%clk 0:00:37.2]}
2... d5 {[%clk 0:02:58.5]} 3. exd5 {[%clk 0:00:38.1]} 3... exd5 {[%clk
0:02:58.8]} 4. Nf3 {[%clk 0:00:39]} 4... Nf6 {[%clk 0:02:58.2]} 5. Bd3 {[%clk
0:00:38.3]} 5... c5 {[%clk 0:02:58.3]} 6. O-O {[%clk 0:00:36.8]} 6... c4 {[%clk
0:02:58.4]} 7. Re1+ {[%clk 0:00:37.2]} 7... Be7 {[%clk 0:02:58.7]} 8. Bf1 {[%clk
0:00:38.1]} 8... O-O {[%clk 0:02:58.6]} 9. b3 {[%clk 0:00:21.5]} 9... cxb3
{[%clk 0:02:58.2]} 10. axb3 {[%clk 0:00:22.4]} 10... Nc6 {[%clk 0:02:58.5]} 11.
c4 {[%clk 0:00:20.3]} 11... h6 {[%clk 0:02:57.4]} 12. h3 {[%clk 0:00:18.4]}
12... Bf5 {[%clk 0:02:56.7]} 13. Ba3 {[%clk 0:00:16.5]} 13... Bxb1 {[%clk
0:02:44.5]} 14. Bxe7 {[%clk 0:00:15.8]} 14... Nxe7 {[%clk 0:02:43]} 15. Qxb1
{[%clk 0:00:16.7]} 15... Nc6 {[%clk 0:02:31.1]} 16. Qb2 {[%clk 0:00:15]} 16...
Qd6 {[%clk 0:02:21.2]} 17. c5 {[%clk 0:00:14.4]} 17... Qf4 {[%clk 0:02:14.7]}
18. Bb5 {[%clk 0:00:15.3]} 18... Rfe8 {[%clk 0:02:02.2]} 19. Rxe8+ {[%clk
0:00:11.3]} 19... Nxe8 {[%clk 0:01:53]} 20. Bxc6 {[%clk 0:00:12.2]} 20... bxc6
{[%clk 0:01:52.6]} 21. Ne5 {[%clk 0:00:13.1]} 21... Rc8 {[%clk 0:01:38.4]} 22.
Rxa7 {[%clk 0:00:12.2]} 22... Nc7 {[%clk 0:01:36.6]} 23. Nxc6 {[%clk 0:00:10.7]}
23... Kh8 {[%clk 0:01:36.2]} 24. Ne5 {[%clk 0:00:08.7]} 24... f6 {[%clk
0:01:31]} 25. Ng6+ {[%clk 0:00:08.5]} 25... Kh7 {[%clk 0:01:28.1]} 26. Nxf4
{[%clk 0:00:09.4]} 26... Kg8 {[%clk 0:01:28.9]} 27. Rxc7 {[%clk 0:00:08.3]}
27... Rxc7 {[%clk 0:01:26.7]} 28. Nxd5 {[%clk 0:00:09.2]} 28... Rb7 {[%clk
0:01:26.9]} 29. Ne3 {[%clk 0:00:10.1]} 29... Ra7 {[%clk 0:01:27.5]} 30. Qc2
{[%clk 0:00:10.6]} 30... Re7 {[%clk 0:01:28.4]} 31. Qc4+ {[%clk 0:00:10.6]}
31... Kf8 {[%clk 0:01:28.2]} 32. d5 {[%clk 0:00:11.5]} 32... Ra7 {[%clk
0:01:27.2]} 33. d6 {[%clk 0:00:11.9]} 33... Ra1+ {[%clk 0:01:28.1]} 34. Kh2
{[%clk 0:00:12.5]} 34... Rc1 {[%clk 0:01:28.5]} 35. Qxc1 {[%clk 0:00:12.4]} 1-0

[Event "*** SCC Grand Prix: Titled Tuesday Blitz"]
[Site "Chess.com"]
[Date "2020.07.21"]
[Round "3"]
[White "GadimbayliA"]
[Black "Denmark2015"]
[Result "1/2-1/2"]
[WhiteElo "2864"]
[BlackElo "2624"]
[TimeControl "180+1"]
[EndTime "10:26:41 PDT"]
[Termination "Game drawn by agreement"]

1. e4 {[%clk 0:03:00.9]} 1... e6 {[%clk 0:02:59.8]} 2. d4 {[%clk 0:03:00.7]}
2... d5 {[%clk 0:03:00]} 3. Nd2 {[%clk 0:03:01.2]} 3... Ne7 {[%clk 0:03:00]} 4.
c3 {[%clk 0:02:59.9]} 4... Nbc6 {[%clk 0:02:53.9]} 5. Bd3 {[%clk 0:02:59.6]}
5... e5 {[%clk 0:02:53.9]} 6. exd5 {[%clk 0:02:57]} 6... Nxd5 {[%clk 0:02:53.9]}
7. Ne2 {[%clk 0:02:38.6]} 7... exd4 {[%clk 0:02:53.5]} 8. cxd4 {[%clk
0:02:38.2]} 8... Be7 {[%clk 0:02:43.2]} 9. O-O {[%clk 0:02:38.1]} 9... O-O
{[%clk 0:02:43.1]} 10. h3 {[%clk 0:02:33.1]} 10... Ndb4 {[%clk 0:02:39.5]} 11.
Bb1 {[%clk 0:02:02.4]} 11... Nxd4 {[%clk 0:02:28.6]} 12. Nxd4 {[%clk 0:02:03.3]}
12... Qxd4 {[%clk 0:02:28.1]} 13. a3 {[%clk 0:02:03.9]} 13... Nc6 {[%clk
0:02:26.4]} 14. Qb3 {[%clk 0:01:57]} 14... Bd6 {[%clk 0:01:59.7]} 15. Nf3 {[%clk
0:01:51.2]} 15... Qb6 {[%clk 0:01:56.2]} 16. Qc2 {[%clk 0:01:47.8]} 16... g6
{[%clk 0:01:54.3]} 17. Bh6 {[%clk 0:01:47.6]} 17... Re8 {[%clk 0:01:48.9]} 18.
Qc3 {[%clk 0:01:46.8]} 18... Ne5 {[%clk 0:01:18.8]} 19. Ng5 {[%clk 0:01:46]}
19... Qc6 {[%clk 0:01:12.5]} 20. Qb3 {[%clk 0:01:24.9]} 20... Be6 {[%clk
0:00:53.5]} 21. Nxe6 {[%clk 0:01:18.9]} 21... Rxe6 {[%clk 0:00:53.7]} 22. Qd1
{[%clk 0:01:05.5]} 22... Bf8 {[%clk 0:00:44.9]} 23. Be3 {[%clk 0:00:56.9]} 23...
Bg7 {[%clk 0:00:41.1]} 24. Ba2 {[%clk 0:00:56.4]} 24... Rd6 {[%clk 0:00:35.2]}
25. Qe2 {[%clk 0:00:55.5]} 25... Nd3 {[%clk 0:00:29.6]} 1/2-1/2

[Event "*** SCC Grand Prix: Titled Tuesday Blitz"]
[Site "Chess.com"]
[Date "2020.07.21"]
[Round "3"]
[White "Agent-JL"]
[Black "Izoria123"]
[Result "0-1"]
[WhiteElo "2449"]
[BlackElo "2888"]
[TimeControl "180+1"]
[EndTime "10:26:45 PDT"]
[Termination "Izoria123 won on time"]

1. d4 {[%clk 0:03:00.9]} 1... d6 {[%clk 0:02:59.8]} 2. c4 {[%clk 0:02:59.7]}
2... e5 {[%clk 0:02:59.4]} 3. dxe5 {[%clk 0:02:59.8]} 3... dxe5 {[%clk
0:03:00.3]} 4. Qxd8+ {[%clk 0:03:00.7]} 4... Kxd8 {[%clk 0:03:00.6]} 5. Nc3
{[%clk 0:03:01.4]} 5... c6 {[%clk 0:03:01]} 6. e4 {[%clk 0:03:02.1]} 6... Be6
{[%clk 0:02:54.4]} 7. Be3 {[%clk 0:03:01]} 7... Nd7 {[%clk 0:02:51.4]} 8. O-O-O
{[%clk 0:03:01.2]} 8... f6 {[%clk 0:02:50.6]} 9. f3 {[%clk 0:02:57.4]} 9... Kc7
{[%clk 0:02:44.4]} 10. Kc2 {[%clk 0:02:57.2]} 10... Nh6 {[%clk 0:02:41.4]} 11.
h4 {[%clk 0:02:24.3]} 11... Nf7 {[%clk 0:02:38.8]} 12. b3 {[%clk 0:02:20.1]}
12... b6 {[%clk 0:02:29.8]} 13. h5 {[%clk 0:02:15.9]} 13... Bc5 {[%clk
0:02:28.4]} 14. Bxc5 {[%clk 0:02:15]} 14... Nxc5 {[%clk 0:02:28.5]} 15. Nge2
{[%clk 0:02:00.6]} 15... a5 {[%clk 0:02:26.2]} 16. a4 {[%clk 0:01:38.5]} 16...
Nd6 {[%clk 0:02:19.2]} 17. g4 {[%clk 0:01:32.9]} 17... Bf7 {[%clk 0:02:13.7]}
18. Ng3 {[%clk 0:01:32.9]} 18... Ne6 {[%clk 0:02:13]} 19. Rd3 {[%clk 0:01:13]}
19... Rhd8 {[%clk 0:01:48.4]} 20. Be2 {[%clk 0:01:01.9]} 20... Nc5 {[%clk
0:01:36.1]} 21. Rd2 {[%clk 0:00:55.2]} 21... Ndb7 {[%clk 0:01:21]} 22. Rhd1
{[%clk 0:00:49.2]} 22... Rxd2+ {[%clk 0:01:19.8]} 23. Rxd2 {[%clk 0:00:49.4]}
23... Nd8 {[%clk 0:01:20.4]} 24. Nf5 {[%clk 0:00:44.6]} 24... Nde6 {[%clk
0:01:20.8]} 25. Bd1 {[%clk 0:00:25.6]} 25... g6 {[%clk 0:01:07.2]} 26. hxg6
{[%clk 0:00:20.2]} 26... hxg6 {[%clk 0:01:08.1]} 27. Nh6 {[%clk 0:00:13.3]}
27... Nd4+ {[%clk 0:01:05.6]} 28. Kb2 {[%clk 0:00:10.6]} 28... Be6 {[%clk
0:01:05.4]} 29. Rh2 {[%clk 0:00:02]} 29... Rh8 {[%clk 0:01:03.7]} 0-1

[Event "*** SCC Grand Prix: Titled Tuesday Blitz"]
[Site "Chess.com"]
[Date "2020.07.21"]
[Round "3"]
[White "zaur-mammadov"]
[Black "Fandorine"]
[Result "1-0"]
[WhiteElo "2666"]
[BlackElo "2927"]
[TimeControl "180+1"]
[EndTime "10:26:49 PDT"]
[Termination "zaur-mammadov won by resignation"]

1. e4 {[%clk 0:03:00.9]} 1... e5 {[%clk 0:03:00.1]} 2. Nf3 {[%clk 0:03:00.3]}
2... Nc6 {[%clk 0:02:59.7]} 3. Nc3 {[%clk 0:03:00.9]} 3... Nf6 {[%clk
0:02:59.7]} 4. Be2 {[%clk 0:03:01.4]} 4... d6 {[%clk 0:02:55.8]} 5. O-O {[%clk
0:03:00.8]} 5... Be7 {[%clk 0:02:55.9]} 6. d4 {[%clk 0:03:00.9]} 6... exd4
{[%clk 0:02:56.7]} 7. Nxd4 {[%clk 0:03:01.1]} 7... O-O {[%clk 0:02:56.8]} 8. f4
{[%clk 0:02:58.8]} 8... Re8 {[%clk 0:02:55.1]} 9. Bf3 {[%clk 0:02:58.6]} 9...
Nd7 {[%clk 0:02:46.2]} 10. Be3 {[%clk 0:02:56.9]} 10... Bf8 {[%clk 0:02:45.8]}
11. Nxc6 {[%clk 0:02:44]} 11... bxc6 {[%clk 0:02:46.7]} 12. e5 {[%clk
0:02:44.1]} 12... d5 {[%clk 0:02:36.6]} 13. Qd2 {[%clk 0:02:39.3]} 13... a5
{[%clk 0:02:33.9]} 14. b3 {[%clk 0:02:37.1]} 14... Bb4 {[%clk 0:02:23]} 15. a3
{[%clk 0:02:36.1]} 15... Bc5 {[%clk 0:02:23.1]} 16. Na4 {[%clk 0:02:30]} 16...
Bxe3+ {[%clk 0:02:20.7]} 17. Qxe3 {[%clk 0:02:30.9]} 17... Ba6 {[%clk
0:02:03.1]} 18. Rfd1 {[%clk 0:02:30]} 18... f6 {[%clk 0:01:53]} 19. e6 {[%clk
0:02:21.7]} 19... Qe7 {[%clk 0:01:52.7]} 20. c4 {[%clk 0:02:04.8]} 20... Nf8
{[%clk 0:01:28.6]} 21. cxd5 {[%clk 0:01:59.2]} 21... cxd5 {[%clk 0:01:28.9]} 22.
Bxd5 {[%clk 0:01:57.4]} 22... Rab8 {[%clk 0:01:25.4]} 23. Nc5 {[%clk 0:01:54.7]}
23... Bc8 {[%clk 0:01:15.9]} 24. Rac1 {[%clk 0:01:49.2]} 24... Rb6 {[%clk
0:01:14.1]} 25. f5 {[%clk 0:01:48.1]} 25... Kh8 {[%clk 0:01:14.1]} 26. Bc4
{[%clk 0:01:43.5]} 26... g6 {[%clk 0:01:05.4]} 27. fxg6 {[%clk 0:01:34.7]} 27...
Nxg6 {[%clk 0:01:05.4]} 28. Nd7 {[%clk 0:01:27.4]} 28... Rd6 {[%clk 0:00:42.1]}
29. Rxd6 {[%clk 0:01:26.8]} 29... cxd6 {[%clk 0:00:43]} 30. Qf2 {[%clk
0:01:11.7]} 30... Ne5 {[%clk 0:00:36.6]} 31. Qxf6+ {[%clk 0:01:07]} 31... Qg7
{[%clk 0:00:36.4]} 32. Qxg7+ {[%clk 0:01:02.9]} 32... Kxg7 {[%clk 0:00:37.3]}
33. Nxe5 {[%clk 0:00:55.2]} 33... dxe5 {[%clk 0:00:38.2]} 34. Bb5 {[%clk
0:00:53.7]} 1-0